bitfinex-derivatives/quotes_ETHF0:USTF0_20251013
["timestamp","ask_amount","ask_price","bid_price","bid_amount"]
[1760369119352,0.43678,4117.4,4117.2,3.45068056]
[1760369119548,0.43678,4117.4,4117.2,0.24288056]
[1760369119749,0.43678,4117.4,4116.3,0.43688]
[1760369119750,1.09202,4117.1,4116.2,0.252]
[1760369119946,0.43691,4116.1,4115.7,3.2078]
[1760369120141,0.4369,4116.2,4115.8,0.9301]
[1760369120346,0.43945431,4116.2,4115.9,0.9301]
[1760369120643,0.00255431,4116.2,4116.1,0.9301]
[1760369121259,0.00255431,4116.2,4116.1,1.1821]
[1760369122654,3.2078,4118.0,4117.4,0.9301]
[1760369122952,0.43673,4117.8,4117.6,0.9301]
[1760369123252,1.3436,4118.7,4117.5,0.3997]
[1760369123253,3.2078,4118.6,4118.1,0.43669]
[1760369123450,3.2078,4119.1,4118.6,0.9301]
[1760369123642,3.20109001,4118.6,4118.2,0.252]
[1760369123959,0.43667,4118.4,4118.3,0.9301]
[1760369124644,0.43665,4118.6,4118.3,0.9301]
[1760369124849,0.43664,4118.7,4118.3,1.36677]
[1760369125153,3.22804975,4118.5,4118.3,0.43667]
[1760369125354,3.1882027,4118.6,4118.4,0.9301]
[1760369125548,0.43664,4118.7,4118.4,0.9301]
[1760369125749,0.43661,4119.0,4118.5,0.83635]
[1760369126150,3.1882027,4119.0,4118.6,0.9301]
[1760369126351,3.1882027,4119.0,4118.8,0.43661]
[1760369126547,0.00273311,4119.1,4119.0,1.7664]
[1760369127452,0.00273311,4119.1,4119.0,4.9742]
[1760369129050,3.2078,4121.6,4120.5,1.3298]
[1760369129252,3.2078,4121.6,4121.0,0.3997]
[1760369129555,3.2078,4121.6,4121.5,1.3298]
[1760369129750,3.2078,4121.6,4121.5,1.76614]
[1760369130055,6.3693106,4121.6,4121.2,0.43636]
[1760369130248,6.3693106,4121.6,4121.3,0.9301]
[1760369130448,0.43637,4121.3,4120.9,0.252]
[1760369130852,3.1699932,4121.2,4120.8,1.1821]
[1760369131057,3.1699932,4121.2,4120.9,0.9301]
[1760369131356,3.17161174,4121.5,4121.1,0.9301]
[1760369131552,0.00278608,4121.6,4121.1,0.9301]
[1760369131759,3.17161174,4121.5,4121.2,0.252]
[1760369131955,3.17161174,4121.5,4121.4,0.9301]
[1760369132149,0.00278608,4121.6,4121.5,1.76614]
[1760369133157,3.19278816,4121.6,4121.2,0.252]
[1760369133353,3.62911816,4121.6,4121.2,0.252]
[1760369133557,0.43634,4121.5,4121.2,0.252]
[1760369133756,6.40058816,4121.6,4120.8,0.9301]
[1760369133956,6.40058816,4121.6,4120.8,1.1821]
[1760369133957,0.43639,4121.0,4120.8,1.1821]
[1760369134554,3.21058608,4121.6,4120.8,1.1821]
[1760369135056,0.43638,4121.1,4120.9,0.9301]
[1760369135656,3.2204302,4121.0,4120.2,3.2078]
[1760369135957,0.43646,4120.4,4120.2,0.252]
[1760369136255,0.43646,4120.4,4120.2,1.1821]
[1760369136757,3.2078,4120.6,4119.5,0.6517]
[1760369136758,0.4365,4120.0,4119.5,0.6517]
[1760369136962,3.2078,4120.1,4119.6,0.9301]
[1760369137260,3.2078,4120.1,4119.5,0.6517]
[1760369137261,0.43651,4119.9,4119.5,1.08825]
[1760369137465,3.12075521,4120.0,4119.9,0.9301]
[1760369137757,3.2078,4120.2,4119.6,1.36663]
[1760369138150,0.43649,4120.1,4119.7,0.43652]
[1760369138350,0.4365,4120.0,4119.8,0.9301]
[1760369139760,3.1185764,4119.9,4119.2,3.64437]
[1760369139955,0.43652,4119.8,4119.3,0.9301]
[1760369140260,1.09112,4120.5,4119.9,0.9301]
[1760369140261,3.1185764,4120.0,4119.9,0.9301]
[1760369140462,0.43647,4120.3,4120.1,0.43648]
[1760369140652,0.68843,4120.7,4120.4,0.43645]
[1760369140955,3.64421,4120.8,4120.6,0.9301]
[1760369141162,0.4364,4120.9,4120.6,0.43643]
[1760369141462,3.17278368,4120.7,4120.5,0.3997]
[1760369141754,0.43642,4120.7,4120.5,0.3997]
[1760369142061,0.43638,4121.1,4120.7,0.43642]
[1760369142254,0.43638,4121.1,4120.8,0.9301]
[1760369142562,0.43639,4121.0,4120.8,0.9301]
[1760369143459,0.43639,4121.0,4120.5,0.6517]
[1760369143460,3.18496778,4120.9,4120.6,0.9301]
[1760369143653,3.2078,4120.7,4120.6,0.9301]
[1760369144055,0.43643,4120.6,4120.5,0.3997]
[1760369144357,0.43643,4120.6,4119.4,1.0914]
[1760369144358,0.4365,4120.0,4119.8,0.9301]
[1760369144763,3.17642126,4120.6,4119.8,0.9301]
[1760369144964,3.17642126,4120.6,4120.5,1.3298]
[1760369145560,3.17642126,4120.6,4120.2,0.9046]
[1760369145561,0.43644,4120.5,4120.2,0.9046]
[1760369145760,0.43644,4120.5,4120.1,0.68748]
[1760369145956,3.17642126,4120.6,4120.2,1.34107]
[1760369146153,3.61286126,4120.6,4120.4,0.9046]
[1760369146565,3.61286126,4120.6,4120.3,0.9046]
[1760369146761,3.61286126,4120.6,4120.2,0.43647]
[1760369146963,0.43644,4120.5,4120.2,0.43647]
[1760369147358,0.43645,4120.4,4120.2,0.9054]
[1760369147761,3.61286126,4120.6,4120.5,0.3819]
[1760369148461,0.43635,4121.4,4120.5,0.6329]
[1760369148762,3.13960202,4121.3,4121.0,0.3819]
[1760369148962,3.13960202,4121.3,4121.1,0.9054]
[1760369149166,0.43635,4121.4,4121.0,0.3819]
[1760369149370,3.1188786,4121.3,4121.0,0.3819]
[1760369149563,0.00278608,4121.6,4121.2,0.9054]
[1760369149766,0.00278608,4121.6,4121.5,1.2873]
[1760369153366,0.00278608,4121.6,4121.0,0.3819]
[1760369153367,0.43637,4121.2,4121.0,0.3819]
[1760369153762,3.16126416,4121.1,4120.7,4.1132]
[1760369153964,3.16126416,4121.1,4120.8,0.9054]
[1760369154158,3.2078,4121.4,4120.8,0.9054]
[1760369154159,0.43636,4121.3,4120.8,0.9054]
[1760369154566,0.43644,4120.5,4120.3,0.251]
[1760369154770,3.2078,4120.9,4120.0,0.3997]
[1760369154771,0.43648,4120.1,4120.0,0.3997]
[1760369155071,0.43648,4120.1,4119.7,4.1132]
[1760369155072,0.4365,4120.0,4119.8,1.1564]
[1760369155466,0.4365,4120.0,4119.8,0.9054]
[1760369155665,0.43652,4119.9,4119.7,3.2078]
[1760369156072,0.43652,4119.9,4119.7,4.1132]
[1760369156270,3.13807792,4120.3,4119.7,3.2078]
[1760369156574,0.43647,4120.2,4120.1,0.9054]
[1760369156768,3.2078,4120.9,4120.5,0.3819]
[1760369156974,3.2078,4121.4,4120.6,0.9054]
[1760369157179,0.43639,4121.0,4120.6,0.43643]
[1760369157469,0.43639,4121.0,4120.7,0.9054]
[1760369157767,3.4588,4121.4,4120.6,0.9054]
[1760369157768,0.43641,4120.8,4120.6,0.9054]
[1760369157973,0.43643,4120.6,4120.5,0.251]
[1760369158273,3.12211088,4120.6,4120.0,0.3819]
[1760369158770,0.43648,4120.2,4120.0,0.3819]
[1760369158969,3.12211088,4120.7,4120.6,0.9054]
[1760369159271,0.00278608,4121.6,4121.0,0.3819]
[1760369159469,0.00278608,4121.6,4121.0,1.2873]
[1760369159675,0.43637,4121.3,4121.0,1.2873]
[1760369160175,0.00278608,4121.6,4120.6,3.2078]
[1760369160176,0.4364,4121.0,4120.6,3.2078]
[1760369160472,3.6442,4121.0,4120.7,0.9054]
[1760369160772,3.53605469,4120.9,4120.7,0.9054]
[1760369161472,3.53605469,4120.9,4120.6,0.9054]
[1760369161773,3.09964469,4120.9,4120.7,0.9054]
[1760369162172,3.53604469,4120.9,4120.7,0.9054]
[1760369162672,1.09361608,4121.6,4121.0,0.3819]
[1760369162673,3.2078,4121.5,4121.0,0.3819]
[1760369162878,3.64414,4121.5,4121.1,0.43637]
[1760369163072,3.2078,4121.5,4121.2,0.43637]
[1760369163372,0.00278608,4121.6,4121.5,1.2873]
[1760369163572,0.85111016,4122.4,4121.5,1.2873]
[1760369163573,3.64402,4122.6,4122.1,0.9054]
[1760369163771,0.98044459,4122.5,4122.0,0.6329]
[1760369163976,0.98044459,4122.5,4122.1,0.9054]
[1760369163977,0.43625,4122.3,4122.1,0.9054]
[1760369164273,3.2078,4122.2,4122.0,0.3819]
[1760369164575,3.2078,4122.2,4122.1,0.9054]
[1760369164770,3.21070983,4122.2,4122.1,0.9054]
[1760369165672,0.00290983,4122.2,4122.1,0.9054]
[1760369168378,0.43627,4122.1,4122.0,0.00243816]
[1760369168875,0.43627,4122.1,4122.0,0.90783816]
[1760369169380,0.00290983,4122.2,4122.1,0.9054]
[1760369170480,0.00290983,4122.2,4122.1,1.1564]
[1760369171179,0.00290983,4122.2,4122.1,1.59267]
[1760369173172,0.43616,4123.2,4122.6,0.9054]
[1760369173379,3.2078,4123.6,4123.5,1.2873]
[1760369173581,3.64391,4123.6,4123.5,1.2873]
[1760369174177,3.64652182,4123.6,4123.5,1.2873]
[1760369174681,3.64652182,4123.6,4123.5,0.3819]
[1760369174881,0.43616,4123.2,4123.1,1.1564]
[1760369175775,0.43614,4123.4,4123.2,0.8764]
[1760369175983,0.43615,4123.3,4123.1,0.251]
[1760369176184,0.43615,4123.3,4123.2,0.8764]
[1760369177077,0.4362,4122.8,4122.7,0.8764]
[1760369177276,1.09037,4123.3,4122.5,1.2583]
[1760369177277,0.43622,4122.6,4122.5,1.2583]
[1760369177479,0.43622,4122.6,4122.5,0.3819]
[1760369177680,0.43621,4122.8,4122.5,0.3819]
[1760369177884,3.2078,4122.9,4122.5,0.3819]
[1760369177885,0.43621,4122.7,4122.6,0.8764]
[1760369179881,3.2078,4122.9,4122.5,0.3819]
[1760369179882,0.43622,4122.6,4122.5,0.3819]
[1760369180180,0.43625,4122.3,4122.2,1.1274]
[1760369181379,1.09056,4122.6,4122.0,0.38433816]
[1760369181380,0.43627,4122.1,4122.0,0.38433816]
[1760369181572,0.43627,4122.1,4122.0,0.00243816]
[1760369181772,3.60077543,4122.1,4122.0,0.00243816]
[1760369181973,0.43643,4120.7,4120.4,5.38216957]
[1760369182175,0.43643,4120.7,4120.0,0.3702]
[1760369182176,0.43643,4120.7,4120.6,0.8764]
[1760369182374,0.43643,4120.6,4120.5,1.2466]
[1760369182972,3.64634849,4120.6,4120.5,1.24908709]
[1760369183685,0.00211849,4120.6,4120.5,1.24908709]
[1760369185881,0.00211849,4120.6,4120.5,0.37268709]
[1760369186281,6.39208585,4120.6,4120.5,0.00248709]
[1760369187084,0.00211849,4120.6,4120.5,1.24908709]
[1760369187390,0.00211849,4120.6,4120.5,4.45688709]
[1760369189581,0.00211849,4120.6,4120.5,4.70788709]
[1760369189982,0.43635,4121.4,4120.5,4.92258709]
[1760369190192,0.43636,4121.3,4121.2,4.0842]
[1760369190390,0.43636,4121.3,4121.2,0.8764]
[1760369191189,0.43888096,4121.3,4121.2,0.8764]
[1760369191592,0.00252096,4121.3,4121.2,0.8764]
[1760369191885,0.00252096,4121.3,4121.2,4.0842]
[1760369192382,3.2078,4122.6,4122.0,0.3702]
[1760369192583,3.64402,4122.6,4122.5,1.2466]
[1760369192779,0.43625,4122.3,4122.2,0.251]
[1760369192980,0.43625,4122.3,4122.2,1.1274]
[1760369193286,0.43908283,4122.3,4122.2,1.1274]
[1760369193679,3.2078,4123.1,4122.2,1.1274]
[1760369193982,3.64397,4123.1,4123.0,1.2466]
[1760369194585,0.43617,4123.1,4123.0,1.2466]
[1760369194789,0.43824933,4123.1,4123.0,1.2466]
[1760369195692,0.43824933,4123.1,4122.5,1.2466]
[1760369195693,0.43622,4122.6,4122.5,1.2466]
[1760369195885,0.43622,4122.6,4122.5,1.4976]
[1760369196086,0.43622,4122.6,4122.5,0.3702]
[1760369196294,0.43626,4122.2,4122.1,1.1274]
[1760369197186,0.43626,4122.2,4122.1,0.8764]
[1760369197492,0.4363,4121.8,4121.7,0.8764]
[1760369199588,0.43627,4122.2,4122.0,0.3702]
[1760369199787,0.00207933,4123.1,4123.0,1.2466]
[1760369200092,1.69689,4123.9,4123.0,1.2466]
[1760369200093,1.2608,4123.9,4123.5,0.3702]
[1760369200290,0.43611,4123.7,4123.6,0.8764]
[1760369200491,1.2608,4123.9,4123.7,0.8764]
[1760369200686,1.0343163,4123.9,4123.8,0.8764]
[1760369200886,1.0343163,4123.9,4123.8,0.8783667]
[1760369200887,1.03619836,4123.9,4123.8,0.8783667]
[1760369201298,3.64378,4124.9,4124.5,0.80622]
[1760369201498,3.64378,4124.9,4124.6,0.251]
[1760369201798,3.64378,4124.9,4124.7,0.8764]
[1760369202097,0.43598,4124.9,4124.7,0.8764]
[1760369202297,0.43856785,4124.9,4124.6,0.251]
[1760369202495,0.43599,4124.8,4124.7,0.8764]
[1760369202897,0.00258785,4124.9,4124.6,0.251]
[1760369203090,0.00258785,4124.9,4124.7,0.8764]
[1760369203287,0.00258785,4124.9,4124.8,0.8764]
[1760369205396,0.00258785,4124.9,4124.8,1.1274]
[1760369206798,0.00258785,4124.9,4124.8,0.8764]
[1760369207302,0.00258785,4124.9,4124.8,1.1274]
[1760369214003,0.00258785,4124.9,4124.8,0.8764]
[1760369214201,0.00258785,4124.9,4124.8,1.1274]
[1760369215609,0.43856785,4124.9,4124.8,1.1274]
[1760369216712,0.00258785,4124.9,4124.8,1.56339]
[1760369217007,0.43856785,4124.9,4124.8,1.56339]
[1760369217314,0.00258785,4124.9,4124.8,1.56339]
[1760369219209,0.00258785,4124.9,4124.8,1.1274]
[1760369219210,0.43856785,4124.9,4124.8,1.1274]
[1760369219414,0.43856785,4124.9,4124.8,1.56339]
[1760369219610,0.43856785,4124.9,4124.5,0.3702]
[1760369219611,0.43601,4124.6,4124.5,1.2576]
[1760369219810,0.43601,4124.6,4124.5,1.5086]
[1760369220317,3.21038785,4124.9,4124.8,0.43599]
[1760369220620,0.00258785,4124.9,4124.8,4.78219]
[1760369224118,3.2078,4126.3,4125.2,1.08987]
[1760369224419,0.165,4127.1,4127.0,1.2352]
[1760369224420,3.2078,4127.1,4127.0,1.2352]
[1760369224611,0.43578,4126.8,4126.7,4.0952]
[1760369224817,0.43574,4127.2,4126.5,0.3478]
[1760369225126,0.43578,4126.8,4126.6,1.32319]
[1760369225426,0.43578,4126.8,4126.7,0.25]
[1760369225613,3.2078,4126.9,4126.7,1.1374]
[1760369225810,3.2078,4126.9,4126.8,0.8874]
[1760369226416,3.64357,4126.9,4126.8,0.8874]
[1760369227523,0.00177955,4127.2,4127.1,0.8874]
[1760369228025,0.00177955,4127.2,4127.1,1.1374]
[1760369228425,0.00177955,4127.2,4127.1,1.57314]
[1760369228626,0.00177955,4127.2,4127.1,1.1374]
[1760369230823,0.00177955,4127.2,4127.1,4.3452]
[1760369232533,0.00177955,4127.2,4127.1,1.1374]
[1760369232534,0.43750955,4127.2,4127.1,1.1374]
[1760369232836,0.00177955,4127.2,4127.1,1.1374]
[1760369233525,0.00177955,4127.2,4127.1,0.8874]
[1760369234225,0.43750955,4127.2,4127.1,0.8874]
[1760369234425,1.08941,4127.0,4126.6,3.2078]
[1760369234625,0.43578,4126.8,4126.7,0.8874]
[1760369234826,1.08941,4127.0,4126.5,0.34951924]
[1760369234827,3.21847389,4126.9,4126.5,0.00171924]
[1760369235133,0.4359,4125.7,4125.6,0.8874]
[1760369235522,3.2078,4126.1,4126.0,1.3117]
[1760369235523,3.64366,4126.1,4126.0,1.3117]
[1760369236030,3.77915,4126.1,4126.0,0.00218073]
[1760369236431,3.2078,4126.1,4126.0,1.31388073]
[1760369237434,0.25,4126.8,4126.5,0.3703]
[1760369237629,0.25,4126.8,4126.1,0.43585]
[1760369237935,0.4358,4126.6,4126.3,0.9414]
[1760369238234,0.43581,4126.5,4126.4,0.9414]
[1760369238432,6.36605672,4126.5,4126.0,0.00218073]
[1760369238731,0.4359,4125.6,4125.4,0.9414]
[1760369238932,0.43591,4125.6,4125.3,0.43593]
[1760369239329,0.43591,4125.6,4125.4,0.9414]
[1760369239525,0.43591,4125.6,4125.4,0.00273648]
[1760369239730,0.43591,4125.6,4125.5,0.9414]
[1760369241639,0.3855,4126.1,4125.5,0.9414]
[1760369241837,3.2078,4126.9,4126.0,3.5781]
[1760369242141,3.2078,4126.9,4126.5,0.3703]
[1760369242439,0.43579,4126.7,4126.6,0.9414]
[1760369242640,3.64357,4126.9,4126.6,0.9414]
[1760369242835,0.43579,4126.7,4126.6,0.9414]
[1760369243529,3.2078,4126.9,4126.6,0.9414]
[1760369243734,0.00177955,4127.2,4126.5,4.01391]
[1760369243735,0.43578,4126.8,4126.5,4.01391]
[1760369244540,0.43579,4126.7,4126.6,0.9414]
[1760369244739,0.43578,4126.9,4126.6,1.1914]
[1760369244937,0.43578,4126.9,4126.6,0.25]
[1760369245334,0.43578,4126.8,4126.7,0.9414]
[1760369245738,0.00177955,4127.2,4127.1,0.9414]
[1760369245933,0.00177955,4127.2,4127.1,4.3992]
[1760369251644,0.00177955,4127.2,4127.1,4.1492]
[1760369252041,0.43579,4126.7,4126.6,4.585]
[1760369252347,0.43577,4126.9,4126.8,0.9414]
[1760369252848,0.43578,4126.8,4126.7,1.1914]
[1760369253437,0.00177955,4127.2,4126.1,0.9414]
[1760369253438,0.1355,4126.7,4126.1,0.9414]
[1760369253636,3.2078,4126.9,4126.0,3.5781]
[1760369253637,0.43584,4126.2,4126.0,3.5781]
[1760369253837,0.57134,4126.2,4126.0,3.2078]
[1760369254038,0.43588,4125.8,4125.7,0.9414]
[1760369254239,0.43588,4125.8,4125.7,1.1914]
[1760369254448,0.4359,4125.6,4125.5,1.5617]
[1760369255148,0.4359,4125.6,4125.4,0.00273648]
[1760369255149,0.1355,4125.5,4125.4,0.00273648]
[1760369255648,0.43601,4124.6,4124.5,1.5617]
[1760369255838,0.1355,4125.2,4124.5,1.5617]
[1760369255839,0.436,4124.8,4124.5,1.5617]
[1760369256038,0.436,4124.8,4124.6,0.9414]
[1760369256244,0.1355,4125.2,4124.5,0.6203]
[1760369256245,0.43595,4125.2,4125.1,0.9414]
[1760369256444,0.43595,4125.2,4125.1,0.94435642]
[1760369257243,3.2078,4125.4,4125.1,0.94435642]
[1760369257443,3.64373,4125.4,4125.2,0.9414]
[1760369257748,0.43594,4125.3,4125.2,0.9414]
[1760369258342,0.43594,4125.3,4125.1,0.00295642]
[1760369258343,0.1355,4125.2,4125.1,0.00295642]
[1760369258537,3.2078,4125.4,4125.2,0.9414]
[1760369258750,3.64373,4125.4,4125.1,0.00295642]
[1760369258949,0.43594,4125.3,4125.2,0.9414]
[1760369259145,0.57144,4125.3,4125.1,0.00295642]
[1760369259350,0.1355,4125.2,4125.1,0.00295642]
[1760369259553,0.43594,4125.3,4125.1,0.00295642]
[1760369259849,3.35082774,4125.2,4125.1,0.00295642]
[1760369260351,3.35082774,4125.2,4124.0,0.3703]
[1760369260352,1.09,4124.8,4124.0,0.3703]
[1760369260550,1.08992,4125.0,4123.7,3.2078]
[1760369260551,0.43609,4123.9,4123.7,3.2078]
[1760369260850,0.1355,4123.9,4123.3,0.9414]
[1760369261048,0.1355,4123.9,4123.3,1.1914]
[1760369261249,0.57159,4123.9,4123.4,0.43613]
[1760369261452,0.00185248,4123.9,4123.8,0.9414]
[1760369262247,0.43794248,4123.9,4123.8,0.9414]
[1760369262550,0.43611,4123.6,4123.4,0.00284878]
[1760369262739,0.1355,4123.5,4123.4,0.00284878]
[1760369262939,0.1355,4123.5,4122.2,5.00777261]
[1760369262940,0.43622,4122.6,4122.2,5.00777261]
[1760369263154,0.43622,4122.6,4122.4,0.9414]
[1760369263545,1.09035,4123.4,4122.2,3.64406]
[1760369263546,0.43625,4122.4,4122.2,3.4578]
[1760369263750,0.43623,4122.6,4122.3,0.9414]
[1760369263951,0.43623,4122.6,4122.4,0.9414]
[1760369264550,0.43623,4122.5,4122.4,0.9414]
[1760369264946,0.43623,4122.5,4122.3,0.00285274]
[1760369265151,0.1355,4122.4,4122.3,0.00285274]
[1760369265350,1.09064,4122.3,4121.7,3.2078]
[1760369265542,0.43629,4122.0,4121.7,3.2078]
[1760369265741,0.43628,4122.1,4121.8,0.8418]
[1760369265941,0.43628,4122.1,4121.7,3.64411]
[1760369266252,3.09976937,4122.2,4121.8,0.8418]
[1760369266453,0.43629,4122.0,4121.9,0.8418]
[1760369266652,0.43629,4122.0,4121.8,0.00230164]
[1760369267147,0.43629,4122.0,4121.9,0.8418]
[1760369267353,0.43629,4122.0,4121.8,0.00230164]
[1760369267751,3.2078,4122.6,4121.9,0.8697]
[1760369268051,3.2078,4123.1,4122.2,3.2078]
[1760369268246,0.43618,4123.0,4122.7,0.8697]
[1760369268447,3.58817127,4123.0,4122.8,0.8697]
[1760369268755,1.09027,4123.7,4122.7,0.43621]
[1760369268756,3.2078,4123.6,4123.3,0.43614]
[1760369269056,6.31199931,4123.6,4123.3,0.8697]
[1760369269241,6.31199931,4123.6,4123.3,0.43614]
[1760369269547,3.2078,4123.6,4123.4,0.8697]
[1760369269954,3.64392,4123.6,4123.4,0.8697]
[1760369270248,3.2078,4123.6,4123.4,0.8697]
[1760369270755,3.2078,4123.6,4123.3,0.43614]
[1760369270956,3.2078,4123.6,4123.4,0.8697]
[1760369271247,3.64392,4123.6,4123.4,0.8697]
[1760369271452,3.64392,4123.6,4123.3,0.43614]
[1760369271847,0.25,4123.8,4123.2,0.43615]
[1760369272044,0.43611,4123.7,4123.3,0.43614]
[1760369272354,3.66263849,4123.7,4123.4,0.8697]
[1760369272546,0.43612,4123.6,4123.4,0.8697]
[1760369272850,3.12412849,4123.7,4123.4,0.43613]
[1760369273047,3.12412849,4123.7,4123.0,0.3472]
[1760369273048,3.56023849,4123.7,4123.5,0.8697]
[1760369273649,0.1024,4123.3,4122.5,0.5972]
[1760369273847,0.43624,4122.5,4122.3,0.25]
[1760369274140,0.43624,4122.5,4122.3,1.1197]
[1760369274347,0.43622,4122.7,4122.4,0.8697]
[1760369274550,0.43619,4123.0,4122.5,0.3472]
[1760369274756,3.08263098,4122.9,4122.5,0.78343]
[1760369275050,0.4362,4122.8,4122.5,1.65313]
[1760369275254,3.08263098,4123.0,4122.5,0.3472]
[1760369275456,0.25,4123.3,4122.6,1.30592]
[1760369275753,3.20866684,4123.1,4122.6,1.30592]
[1760369276054,0.43619,4123.0,4122.7,0.43621]
[1760369276251,0.25,4123.3,4122.8,0.8697]
[1760369276446,0.3524,4123.3,4122.9,0.8697]
[1760369276651,0.53857,4123.1,4122.9,0.8697]
[1760369276847,0.1024,4123.1,4122.9,0.8697]
[1760369277047,0.25,4123.3,4123.0,0.43618]
[1760369277351,0.25,4123.3,4123.1,0.8697]
[1760369277654,0.25,4123.3,4123.0,0.78338]
[1760369277851,0.43616,4123.2,4123.1,0.8697]
[1760369278056,0.25,4123.3,4122.8,4.0775]
[1760369278057,0.43618,4123.0,4122.8,4.0775]
[1760369278351,0.43618,4123.0,4122.8,3.2078]
[1760369278556,0.43617,4123.2,4122.9,0.8697]
[1760369278747,0.43617,4123.1,4122.9,0.8697]
[1760369279055,0.43617,4123.1,4122.8,3.644]
[1760369279353,0.43617,4123.1,4122.9,0.8697]
[1760369279555,0.43617,4123.1,4122.8,3.2078]
[1760369279556,0.43619,4122.9,4122.8,3.2078]
[1760369279955,0.43618,4123.1,4122.9,0.43619]
[1760369280154,0.68616,4123.3,4123.1,0.8697]
[1760369280357,2.18027,4124.3,4123.0,0.78338]
[1760369280358,0.68793248,4123.9,4123.4,0.43613]
[1760369280558,0.68793248,4123.9,4123.0,1.43765]
[1760369280559,0.4361,4123.7,4123.1,0.25]
[1760369280759,0.00185248,4123.9,4123.5,0.3472]
[1760369280958,0.00185248,4123.9,4123.8,1.30579]
[1760369281360,0.00185248,4123.9,4123.5,0.5972]
[1760369281361,0.43611,4123.6,4123.5,1.2169]
[1760369281560,0.43611,4123.6,4123.5,1.4669]
[1760369281861,0.43615,4123.3,4123.0,1.2169]
[1760369282156,0.00185248,4123.9,4122.5,1.43778]
[1760369282157,0.43622,4122.6,4122.5,0.3472]
[1760369282360,0.1024,4122.2,4121.8,0.00230164]
[1760369282549,0.53869,4121.9,4121.8,0.00230164]
[1760369282949,3.2078,4122.1,4121.8,0.00230164]
[1760369283155,0.1024,4122.1,4121.8,0.00230164]
[1760369283367,0.1024,4122.1,4121.8,0.87200164]
[1760369283666,0.53868,4122.1,4121.8,0.87200164]
[1760369283961,0.43628,4122.1,4121.9,0.8697]
[1760369284261,0.0182,4122.4,4121.8,0.00230164]
[1760369284459,0.43636,4121.3,4121.2,3.2078]
[1760369284765,6.47705948,4121.3,4120.5,1.2169]
[1760369285062,0.1024,4120.3,4119.8,3.2078]
[1760369285266,3.2078,4120.8,4120.0,0.8697]
[1760369285456,3.45977675,4120.8,4120.1,0.8697]
[1760369285761,3.08946592,4120.7,4120.5,0.43643]
[1760369285960,3.45977675,4120.8,4120.7,1.30612]
[1760369285961,0.00197675,4120.8,4120.7,1.30612]
[1760369289556,0.00197675,4120.8,4120.7,1.55612]
[1760369293371,0.00197675,4120.8,4120.7,1.30612]
[1760369293659,0.00197675,4120.8,4120.7,1.55612]
[1760369293861,0.00197675,4120.8,4120.7,1.30612]
[1760369294073,0.00197675,4120.8,4120.3,3.2078]
[1760369294367,0.1024,4120.4,4120.3,3.2078]
[1760369294563,0.1024,4120.4,4120.0,0.00255719]
[1760369294869,0.1024,4119.2,4119.1,3.2078]
[1760369295066,0.539,4119.1,4118.9,0.25]
[1760369295465,0.1024,4119.1,4118.9,0.25]
[1760369295669,0.53899,4119.1,4118.9,0.25]
[1760369295970,0.078,4119.0,4118.9,0.00305627]
[1760369296359,3.2858,4119.3,4119.0,0.4366]
[1760369296563,0.078,4119.2,4118.9,0.00305627]
[1760369296865,0.078,4119.0,4118.9,0.00305627]
[1760369297064,3.22068464,4119.2,4118.9,0.43966627]
[1760369297065,3.29868464,4119.2,4118.9,0.43966627]
[1760369297267,0.078,4119.2,4118.9,0.43966627]
[1760369297568,0.078,4119.2,4118.9,1.28856627]
[1760369297865,0.078,4119.2,4118.9,0.85195627]
[1760369297866,0.51458,4119.2,4118.9,0.85195627]
[1760369298166,0.078,4119.0,4118.9,0.00305627]
[1760369298469,3.2545126,4119.0,4118.9,0.00305627]
[1760369299860,3.1765126,4119.0,4118.9,0.00305627]
[1760369300263,3.2545126,4119.0,4118.9,0.00305627]
[1760369302470,3.2545126,4119.0,4118.1,3.4578]
[1760369302471,0.078,4118.9,4118.1,3.4578]
[1760369302770,0.43664,4118.7,4118.1,4.3067]
[1760369303167,3.15396856,4118.6,4118.4,1.28556]
[1760369303371,3.15396856,4118.6,4118.4,1.2879787]
[1760369303565,3.15396856,4118.6,4118.4,0.8513187]
[1760369303762,3.59061856,4118.6,4118.4,0.8513187]
[1760369303967,0.51465,4118.6,4118.4,0.0024187]
[1760369304271,3.21830027,4118.5,4118.4,0.0024187]
[1760369305669,3.65495027,4118.5,4118.4,0.0024187]
[1760369305865,3.21830027,4118.5,4118.4,0.0024187]
[1760369306071,3.21830027,4118.5,4118.4,1.2879887]
[1760369306072,3.14030027,4118.5,4118.4,1.2879887]
[1760369306272,3.57695027,4118.5,4118.4,0.8513187]
[1760369306575,3.57695027,4118.5,4118.4,1.2879887]
[1760369307169,3.57695027,4118.5,4118.4,0.0024187]
[1760369307478,3.65495027,4118.5,4118.4,0.0024187]
[1760369307771,3.65495027,4118.5,4117.6,3.2078]
[1760369307772,0.43674,4117.8,4117.6,3.2078]
[1760369308069,1.09171,4118.3,4117.6,3.2078]
[1760369308070,3.13000957,4117.7,4117.6,3.2078]
[1760369308272,3.13000957,4117.7,4117.6,4.0567]
[1760369308473,0.4367,4118.1,4117.9,0.8489]
[1760369308675,0.4367,4118.1,4118.0,0.8489]
[1760369308877,0.0027523,4118.1,4118.0,1.18112694]
[1760369309472,0.0027523,4118.1,4118.0,0.00212694]
[1760369309872,0.0027523,4118.1,4118.0,0.85102694]
[1760369310172,0.0027523,4118.1,4118.0,1.61783694]
[1760369312572,0.43691,4116.1,4116.0,1.51239267]
[1760369312769,0.43691,4116.1,4115.6,2.15950235]
[1760369312770,0.43693,4115.9,4115.6,0.8489]
[1760369312970,0.43695,4115.7,4115.6,0.8489]
[1760369313277,3.66349011,4115.7,4115.6,0.8489]
[1760369313579,3.66349011,4115.7,4115.6,0.85099829]